[Event "Championnat d'Europe de Blitz"]
[Date "2024.12.09"]
[White "Mastrovasilis, Dimitrios"]
[Black "Oliinyk, Serafym"]
[WhiteElo "2537"]
[BlackElo "2207"]
[Round "9.35"]
[Result "1/2-1/2"]
[TimeControl "180+2"]

1. e4 {[%emt 00:00:02] [%clk 00:03:02]} e5 {[%clk 00:03:04]} 2. Nf3 {[%emt
00:00:02] [%clk 00:03:02]} Nc6 {[%clk 00:03:05]} 3. d4 {[%emt 00:00:01] [%clk
00:03:02]} exd4 {[%emt 00:00:01] [%clk 00:03:06]} 4. c3 {[%emt 00:00:01] [%clk
00:03:03]} d5 {[%emt 00:00:02] [%clk 00:03:06]} 5. exd5 {[%emt 00:00:02] [%clk
00:03:04]} Qxd5 {[%clk 00:03:07]} 6. cxd4 {[%emt 00:00:02] [%clk 00:03:04]} Bb4+
{[%emt 00:00:01] [%clk 00:03:08]} 7. Nc3 {[%emt 00:00:02] [%clk 00:03:04]} Bg4
{[%emt 00:00:03] [%clk 00:03:07]} 8. Be2 {[%emt 00:00:01] [%clk 00:03:05]} Bxf3
{[%emt 00:00:03] [%clk 00:03:06]} 9. Bxf3 {[%emt 00:00:01] [%clk 00:03:05]} Qc4
{[%emt 00:00:01] [%clk 00:03:07]} 10. Qb3 {[%emt 00:00:02] [%clk 00:03:05]} Qxb3
{[%emt 00:00:04] [%clk 00:03:05]} 11. axb3 {[%emt 00:00:02] [%clk 00:03:05]}
O-O-O {[%emt 00:00:02] [%clk 00:03:05]} 12. Be3 {[%emt 00:00:42] [%clk
00:02:26]} Nxd4 {[%emt 00:01:26] [%clk 00:01:40]} 13. Bxd4 {[%emt 00:00:03]
[%clk 00:02:25]} Rxd4 {[%emt 00:00:01] [%clk 00:01:41]} 14. Rxa7 {[%emt
00:00:02] [%clk 00:02:25]} c6 {[%emt 00:00:07] [%clk 00:01:36]} 15. Ra8+ {[%emt
00:00:19] [%clk 00:02:08]} Kc7 {[%emt 00:00:03] [%clk 00:01:36]} 16. O-O {[%emt
00:00:02] [%clk 00:02:08]} Rd8 {[%emt 00:00:18] [%clk 00:01:20]} 17. Nb5+ {[%emt
00:00:04] [%clk 00:02:06]} cxb5 {[%emt 00:00:09] [%clk 00:01:13]} 18. Rc1+
{[%clk 00:02:07]} Kd7 {[%emt 00:00:05] [%clk 00:01:11]} 19. Rd1+ {[%clk
00:02:08]} Bd6 {[%clk 00:01:12]} 20. Rxd6+ {[%emt 00:00:03] [%clk 00:02:07]}
Kxd6 {[%emt 00:00:01] [%clk 00:01:13]} 21. Rxd8+ {[%emt 00:00:02] [%clk
00:02:07]} Ke7 {[%emt 00:00:09] [%clk 00:01:06]} 22. Rb8 {[%emt 00:00:02] [%clk
00:02:08]} g6 {[%emt 00:00:02] [%clk 00:01:06]} 23. Kf1 {[%emt 00:00:43] [%clk
00:01:26]} Kf6 {[%emt 00:00:05] [%clk 00:01:03]} 24. Bd5 {[%emt 00:00:06] [%clk
00:01:23]} Kg7 {[%emt 00:00:03] [%clk 00:01:02]} 25. Rxb7 {[%emt 00:00:02] [%clk
00:01:23]} Nh6 {[%emt 00:00:03] [%clk 00:01:01]} 26. h3 {[%emt 00:00:20] [%clk
00:01:05]} Rc8 {[%emt 00:00:03] [%clk 00:01:00]} 27. b4 {[%emt 00:00:12] [%clk
00:00:55]} Rc1+ {[%emt 00:00:04] [%clk 00:00:58]} 28. Ke2 {[%emt 00:00:01] [%clk
00:00:55]} Rc2+ {[%emt 00:00:01] [%clk 00:00:59]} 29. Kf3 {[%emt 00:00:03] [%clk
00:00:53]} Rxb2 {[%emt 00:00:04] [%clk 00:00:58]} 30. g4 {[%emt 00:00:02] [%clk
00:00:53]} g5 {[%emt 00:00:53] [%clk 00:00:07]} 31. Rxb5 {[%emt 00:00:09] [%clk
00:00:46]} Ng8 {[%emt 00:00:05] [%clk 00:00:05]} 32. Rb7 {[%emt 00:00:01] [%clk
00:00:46]} Nh6 {[%emt 00:00:03] [%clk 00:00:04]} 33. b5 {[%emt 00:00:02] [%clk
00:00:47]} Kf6 {[%clk 00:00:05]} 34. b6 {[%emt 00:00:07] [%clk 00:00:41]} Ke5
{[%clk 00:00:06]} 35. Bxf7 {[%emt 00:00:04] [%clk 00:00:39]} Nxf7 {[%emt
00:00:03] [%clk 00:00:05]} 36. Rxf7 {[%emt 00:00:01] [%clk 00:00:39]} Rxb6
{[%emt 00:00:04] [%clk 00:00:03]} 37. Rf5+ {[%emt 00:00:01] [%clk 00:00:40]} Ke6
{[%emt 00:00:02] [%clk 00:00:04]} 38. Rxg5 {[%clk 00:00:41]} Kf6 {[%emt
00:00:03] [%clk 00:00:03]} 39. Rf5+ {[%clk 00:00:41]} Kg6 {[%emt 00:00:01] [%clk
00:00:04]} 40. Kg3 {[%emt 00:00:01] [%clk 00:00:42]} Rb3+ {[%emt 00:00:01] [%clk
00:00:05]} 41. f3 {[%clk 00:00:43]} Rc3 {[%emt 00:00:01] [%clk 00:00:06]} 42. h4
{[%emt 00:00:01] [%clk 00:00:44]} h6 {[%clk 00:00:07]} 43. Ra5 {[%emt 00:00:03]
[%clk 00:00:44]} Rb3 {[%clk 00:00:08]} 44. h5+ {[%emt 00:00:04] [%clk 00:00:41]}
Kg7 {[%clk 00:00:10]} 45. Rf5 {[%emt 00:00:02] [%clk 00:00:42]} Rc3 {[%emt
00:00:01] [%clk 00:00:11]} 46. Kh4 {[%clk 00:00:42]} Rc1 {[%emt 00:00:02] [%clk
00:00:10]} 47. f4 {[%emt 00:00:02] [%clk 00:00:42]} Rh1+ {[%emt 00:00:01] [%clk
00:00:12]} 48. Kg3 {[%clk 00:00:44]} Rg1+ {[%clk 00:00:13]} 49. Kf3 {[%clk
00:00:45]} Rf1+ {[%emt 00:00:02] [%clk 00:00:12]} 50. Kg2 {[%clk 00:00:46]} Rb1
{[%emt 00:00:02] [%clk 00:00:12]} 51. Re5 {[%emt 00:00:09] [%clk 00:00:39]} Rb2+
{[%emt 00:00:02] [%clk 00:00:12]} 52. Kf3 {[%clk 00:00:40]} Rb3+ {[%emt
00:00:02] [%clk 00:00:13]} 53. Re3 {[%clk 00:00:41]} Rb1 {[%emt 00:00:02] [%clk
00:00:13]} 54. g5 {[%emt 00:00:04] [%clk 00:00:39]} Rg1 {[%emt 00:00:10] [%clk
00:00:04]} 55. Re7+ {[%emt 00:00:04] [%clk 00:00:37]} Kf8 {[%emt 00:00:02] [%clk
00:00:05]} 56. Re5 {[%clk 00:00:38]} Kg7 {[%emt 00:00:03] [%clk 00:00:04]} 57.
Re6 {[%emt 00:00:12] [%clk 00:00:27]} hxg5 {[%emt 00:00:03] [%clk 00:00:03]} 58.
Rg6+ {[%emt 00:00:01] [%clk 00:00:28]} Kh7 {[%emt 00:00:03] [%clk 00:00:03]} 59.
fxg5 {[%emt 00:00:01] [%clk 00:00:29]} Rf1+ {[%emt 00:00:02] [%clk 00:00:03]}
60. Kg2 {[%emt 00:00:01] [%clk 00:00:29]} Rf5 {[%emt 00:00:01] [%clk 00:00:04]}
61. Kg3 {[%clk 00:00:30]} Rb5 {[%emt 00:00:02] [%clk 00:00:05]} 62. Kg4 {[%emt
00:00:19] [%clk 00:00:12]} Rb4+ {[%clk 00:00:06]} 63. Kf3 {[%clk 00:00:13]} Rb3+
{[%emt 00:00:01] [%clk 00:00:07]} 64. Ke4 {[%emt 00:00:01] [%clk 00:00:14]} Rb5
{[%emt 00:00:04] [%clk 00:00:05]} 65. Kd4 {[%emt 00:00:05] [%clk 00:00:12]} Ra5
{[%emt 00:00:02] [%clk 00:00:05]} 66. Kc4 {[%emt 00:00:01] [%clk 00:00:13]} Re5
{[%emt 00:00:03] [%clk 00:00:04]} 67. Kc3 {[%emt 00:00:05] [%clk 00:00:10]} Ra5
{[%emt 00:00:03] [%clk 00:00:04]} 68. Kb4 {[%emt 00:00:04] [%clk 00:00:09]} Rd5
{[%clk 00:00:05]} 69. Kc4 {[%emt 00:00:03] [%clk 00:00:08]} Ra5 {[%clk
00:00:06]} 70. Kd4 {[%emt 00:00:01] [%clk 00:00:09]} Rb5 {[%emt 00:00:02] [%clk
00:00:06]} 71. Ke4 {[%emt 00:00:05] [%clk 00:00:06]} Ra5 {[%emt 00:00:01] [%clk
00:00:08]} 72. Kf4 {[%clk 00:00:06]} Ra4+ {[%clk 00:00:09]} 73. Kf3 {[%clk
00:00:08]} Ra5 {[%emt 00:00:04] [%clk 00:00:08]} 74. Rh6+ {[%emt 00:00:03] [%clk
00:00:06]} Kg7 {[%clk 00:00:09]} 75. Kg4 {[%emt 00:00:03] [%clk 00:00:05]} Ra4+
{[%emt 00:00:02] [%clk 00:00:09]} 76. Kg3 {[%clk 00:00:06]} Ra5 {[%emt 00:00:02]
[%clk 00:00:09]} 77. Rg6+ {[%emt 00:00:01] [%clk 00:00:06]} Kh7 {[%emt 00:00:01]
[%clk 00:00:11]} 78. Rf6 {[%emt 00:00:19] [%clk 00:00:00]} Rxg5+ {[%emt
00:00:25] [%clk 00:01:10]} 79. Kh4 {[%clk 00:00:05]} Rg1 {[%emt 00:00:01] [%clk
00:01:10]} 80. Rf7+ {[%emt 00:00:01] [%clk 00:00:06]} Kh6 {[%emt 00:00:02] [%clk
00:01:11]} 81. Rf6+ {[%clk 00:00:07]} Kh7 {[%clk 00:01:12]} 82. Rd6 {[%clk
00:00:08]} Rg2 {[%emt 00:00:03] [%clk 00:01:11]} 83. Rd3 {[%emt 00:00:03] [%clk
00:00:08]} Rg1 {[%emt 00:00:02] [%clk 00:01:10]} 84. Kh3 {[%emt 00:00:03] [%clk
00:00:06]} Kh6 {[%emt 00:00:02] [%clk 00:01:10]} 85. Rd5 {[%emt 00:00:02] [%clk
00:00:06]} Rg5 {[%emt 00:00:04] [%clk 00:01:08]} 86. Rxg5 {[%emt 00:00:02] [%clk
00:00:07]} Kxg5 {[%clk 00:01:09]} 87. h6 {[%clk 00:00:08]} Kxh6 {[%emt 00:00:01]
[%clk 00:01:11]} 1/2-1/2

[Site "Europe Echecs"]

[Event "Championnat d'Europe de Blitz"]
[Date "2024.12.09"]
[White "Maier, Christian"]
[Black "Smeets, Jan"]
[WhiteElo "2235"]
[BlackElo "2552"]
[Round "9.36"]
[Result "1-0"]
[TimeControl "180+2"]

1. e4 {[%clk 00:03:03]} c6 {[%emt 00:00:01] [%clk 00:03:04]} 2. d4 {[%emt
00:00:02] [%clk 00:03:03]} d5 {[%emt 00:00:01] [%clk 00:03:05]} 3. e5 {[%clk
00:03:04]} Bf5 {[%emt 00:00:01] [%clk 00:03:06]} 4. h4 {[%emt 00:00:02] [%clk
00:03:03]} h5 {[%emt 00:00:01] [%clk 00:03:07]} 5. Bg5 {[%emt 00:00:01] [%clk
00:03:04]} Qb6 {[%emt 00:00:22] [%clk 00:02:48]} 6. Bd3 {[%emt 00:00:02] [%clk
00:03:04]} Bxd3 {[%emt 00:00:24] [%clk 00:02:26]} 7. Qxd3 {[%emt 00:00:01] [%clk
00:03:04]} e6 {[%emt 00:00:01] [%clk 00:02:27]} 8. Nc3 {[%emt 00:00:02] [%clk
00:03:03]} c5 {[%emt 00:00:13] [%clk 00:02:16]} 9. Nf3 {[%emt 00:00:37] [%clk
00:02:28]} cxd4 {[%emt 00:00:07] [%clk 00:02:11]} 10. Nxd4 {[%emt 00:00:41]
[%clk 00:01:48]} Nc6 {[%emt 00:00:01] [%clk 00:02:13]} 11. Nxc6 {[%emt 00:00:05]
[%clk 00:01:45]} bxc6 {[%emt 00:00:02] [%clk 00:02:13]} 12. O-O {[%emt 00:00:02]
[%clk 00:01:44]} Ne7 {[%emt 00:00:04] [%clk 00:02:12]} 13. Na4 {[%emt 00:00:07]
[%clk 00:01:39]} Qb5 {[%emt 00:00:07] [%clk 00:02:07]} 14. Qxb5 {[%emt 00:00:15]
[%clk 00:01:27]} cxb5 {[%clk 00:02:08]} 15. Nc5 {[%emt 00:00:02] [%clk
00:01:27]} Nf5 {[%emt 00:00:42] [%clk 00:01:28]} 16. Nd3 {[%emt 00:00:05] [%clk
00:01:24]} Kd7 {[%emt 00:00:05] [%clk 00:01:25]} 17. c3 {[%emt 00:00:08] [%clk
00:01:18]} a5 {[%emt 00:00:06] [%clk 00:01:22]} 18. Rfc1 {[%emt 00:00:08] [%clk
00:01:12]} a4 {[%emt 00:00:30] [%clk 00:00:54]} 19. Kf1 {[%emt 00:00:02] [%clk
00:01:11]} Be7 {[%emt 00:00:09] [%clk 00:00:47]} 20. Bxe7 {[%emt 00:00:02] [%clk
00:01:12]} Kxe7 {[%emt 00:00:01] [%clk 00:00:48]} 21. g3 {[%clk 00:01:13]} Rhc8
{[%emt 00:00:01] [%clk 00:00:49]} 22. Ke2 {[%emt 00:00:07] [%clk 00:01:07]} Rc4
{[%emt 00:00:03] [%clk 00:00:49]} 23. Kd2 {[%emt 00:00:04] [%clk 00:01:05]} f6
{[%emt 00:00:09] [%clk 00:00:42]} 24. b3 {[%emt 00:00:02] [%clk 00:01:05]} Rcc8
{[%emt 00:00:04] [%clk 00:00:39]} 25. Rab1 {[%emt 00:00:10] [%clk 00:00:58]}
axb3 {[%emt 00:00:03] [%clk 00:00:38]} 26. axb3 {[%clk 00:00:59]} Ra2+ {[%emt
00:00:06] [%clk 00:00:34]} 27. Ke1 {[%emt 00:00:26] [%clk 00:00:35]} Kf7 {[%emt
00:00:12] [%clk 00:00:24]} 28. exf6 {[%emt 00:00:03] [%clk 00:00:34]} gxf6
{[%emt 00:00:01] [%clk 00:00:25]} 29. Nb4 {[%clk 00:00:35]} Ra7 {[%emt 00:00:05]
[%clk 00:00:22]} 30. Kd2 {[%emt 00:00:02] [%clk 00:00:35]} Ke7 {[%emt 00:00:11]
[%clk 00:00:13]} 31. Ra1 {[%emt 00:00:01]} Rca8 32. Rxa7+ {[%emt 00:00:01] [%clk
00:00:37]} Rxa7 {[%emt 00:00:01] [%clk 00:00:15]} 33. Nc6+ {[%emt 00:00:03]
[%clk 00:00:35]} Kd6 {[%emt 00:00:01] [%clk 00:00:16]} 34. Nxa7 {[%clk
00:00:36]} 1-0

[Site "Europe Echecs"]

[Event "Championnat d'Europe de Blitz"]
[Date "2024.12.09"]
[White "Muter, Donny"]
[Black "Janik, Igor"]
[WhiteElo "2206"]
[BlackElo "2515"]
[Round "9.37"]
[Result "1-0"]
[TimeControl "180+2"]

1. b3 {[%emt 00:00:02] [%clk 00:03:02]} a5 {[%emt 00:00:04] [%clk 00:03:01]} 2.
a3 {[%emt 00:00:02] [%clk 00:03:02]} Nf6 {[%emt 00:00:04] [%clk 00:02:58]} 3.
Bb2 {[%emt 00:00:01] [%clk 00:03:04]} g6 {[%clk 00:02:59]} 4. Nf3 {[%clk
00:03:05]} Bg7 {[%clk 00:03:00]} 5. e3 {[%clk 00:03:06]} O-O {[%emt 00:00:02]
[%clk 00:03:01]} 6. Be2 {[%clk 00:03:07]} d5 {[%emt 00:00:01] [%clk 00:03:02]}
7. O-O {[%emt 00:00:03] [%clk 00:03:07]} c5 {[%emt 00:00:01] [%clk 00:03:03]} 8.
d4 {[%emt 00:00:01] [%clk 00:03:07]} Ne4 {[%emt 00:00:05] [%clk 00:03:00]} 9.
Nbd2 {[%clk 00:03:08]} Nc6 {[%clk 00:03:02]} 10. c4 {[%emt 00:00:02] [%clk
00:03:09]} cxd4 {[%emt 00:00:09] [%clk 00:02:54]} 11. Nxd4 {[%emt 00:00:30]
[%clk 00:02:41]} Nxd4 {[%emt 00:00:03] [%clk 00:02:53]} 12. exd4 {[%emt
00:00:05] [%clk 00:02:39]} Nxd2 {[%emt 00:00:05] [%clk 00:02:50]} 13. Qxd2
{[%emt 00:00:01] [%clk 00:02:39]} a4 {[%emt 00:00:03] [%clk 00:02:49]} 14. bxa4
{[%emt 00:00:17] [%clk 00:02:24]} dxc4 {[%emt 00:00:05] [%clk 00:02:46]} 15.
Bxc4 {[%emt 00:00:01] [%clk 00:02:25]} Rxa4 {[%emt 00:00:03] [%clk 00:02:45]}
16. Bb3 {[%emt 00:00:02] [%clk 00:02:25]} Ra6 {[%emt 00:00:01] [%clk 00:02:46]}
17. d5 {[%emt 00:00:09] [%clk 00:02:18]} Bxb2 {[%emt 00:00:07] [%clk 00:02:42]}
18. Qxb2 {[%emt 00:00:01] [%clk 00:02:19]} Rb6 {[%clk 00:02:43]} 19. Rfd1 {[%emt
00:00:32] [%clk 00:01:49]} Qd6 {[%emt 00:00:04] [%clk 00:02:41]} 20. Qc3 {[%emt
00:00:37] [%clk 00:01:13]} Bd7 {[%clk 00:02:42]} 21. Qe3 {[%emt 00:00:04] [%clk
00:01:11]} Ra8 {[%emt 00:00:07] [%clk 00:02:38]} 22. Re1 {[%emt 00:00:12] [%clk
00:01:02]} Bf5 {[%emt 00:00:06] [%clk 00:02:34]} 23. h3 {[%emt 00:00:09] [%clk
00:00:55]} Rxa3 {[%emt 00:00:09] [%clk 00:02:26]} 24. Rxa3 {[%emt 00:00:03]
[%clk 00:00:54]} Qxa3 {[%clk 00:02:27]} 25. Qxb6 {[%emt 00:00:02] [%clk
00:00:55]} 1-0

[Site "Europe Echecs"]

[Event "Championnat d'Europe de Blitz"]
[Date "2024.12.09"]
[White "Laurusas, Tomas"]
[Black "Todorovic, Goran N"]
[WhiteElo "2578"]
[BlackElo "2256"]
[Round "9.38"]
[Result "0-1"]
[TimeControl "180+2"]

1. c4 {[%clk 00:03:03]} e6 {[%emt 00:00:52] [%clk 00:02:12]} 2. g3 {[%emt
00:00:02] [%clk 00:03:03]} d5 {[%emt 00:00:01] [%clk 00:02:13]} 3. Bg2 {[%emt
00:00:02] [%clk 00:03:03]} Nf6 {[%clk 00:02:15]} 4. d4 {[%emt 00:00:02] [%clk
00:03:04]} dxc4 {[%emt 00:00:03] [%clk 00:02:13]} 5. Qa4+ {[%emt 00:00:01] [%clk
00:03:05]} Nbd7 {[%emt 00:00:07] [%clk 00:02:08]} 6. Qxc4 {[%emt 00:00:09] [%clk
00:02:59]} a6 {[%clk 00:02:09]} 7. Qc2 {[%emt 00:00:01] [%clk 00:02:59]} c5
{[%emt 00:00:03] [%clk 00:02:08]} 8. Nf3 {[%emt 00:00:04] [%clk 00:02:57]} b5
{[%emt 00:00:11] [%clk 00:01:59]} 9. Ne5 {[%emt 00:00:10] [%clk 00:02:49]} Nd5
{[%emt 00:00:01] [%clk 00:02:00]} 10. Nxd7 {[%emt 00:00:02] [%clk 00:02:50]}
Bxd7 {[%emt 00:00:06] [%clk 00:01:56]} 11. dxc5 {[%emt 00:00:05] [%clk
00:02:46]} Rc8 {[%clk 00:01:57]} 12. O-O {[%emt 00:00:12] [%clk 00:02:38]} Bxc5
{[%emt 00:00:02] [%clk 00:01:56]} 13. Qb3 {[%emt 00:00:05] [%clk 00:02:35]} Bc6
{[%emt 00:00:03] [%clk 00:01:56]} 14. Nd2 {[%emt 00:00:04] [%clk 00:02:34]} O-O
{[%emt 00:00:04] [%clk 00:01:53]} 15. Ne4 {[%emt 00:00:01] [%clk 00:02:35]} Be7
{[%emt 00:00:02] [%clk 00:01:53]} 16. Rd1 {[%emt 00:00:07] [%clk 00:02:30]} Qb6
{[%emt 00:00:01] [%clk 00:01:54]} 17. Bd2 {[%emt 00:00:03] [%clk 00:02:30]} Qb7
{[%emt 00:00:01] [%clk 00:01:55]} 18. Rac1 {[%emt 00:00:16] [%clk 00:02:16]} h6
{[%emt 00:00:10] [%clk 00:01:46]} 19. Ba5 {[%emt 00:00:09] [%clk 00:02:10]} Nb6
{[%emt 00:00:13] [%clk 00:01:35]} 20. Bxb6 {[%emt 00:00:21] [%clk 00:01:52]}
Qxb6 {[%emt 00:00:01] [%clk 00:01:35]} 21. Nd6 {[%emt 00:00:19] [%clk 00:01:35]}
Rc7 {[%emt 00:00:19] [%clk 00:01:18]} 22. Nc4 {[%emt 00:00:02] [%clk 00:01:36]}
Qb8 {[%emt 00:00:06] [%clk 00:01:14]} 23. Na5 {[%emt 00:00:12] [%clk 00:01:26]}
Bxg2 {[%emt 00:00:03] [%clk 00:01:12]} 24. Kxg2 {[%clk 00:01:27]} Rfc8 {[%emt
00:00:06] [%clk 00:01:10]} 25. Qe3 {[%emt 00:00:22] [%clk 00:01:08]} Bf6 {[%emt
00:00:19] [%clk 00:00:52]} 26. b4 {[%emt 00:00:13] [%clk 00:00:57]} Rc2 {[%emt
00:00:03] [%clk 00:00:50]} 27. Rxc2 {[%emt 00:00:09] [%clk 00:00:50]} Rxc2
{[%emt 00:00:02] [%clk 00:00:50]} 28. a3 {[%emt 00:00:16] [%clk 00:00:36]} Qc8
{[%emt 00:00:13] [%clk 00:00:39]} 29. Rd3 {[%emt 00:00:03] [%clk 00:00:36]} Bg5
{[%emt 00:00:10] [%clk 00:00:30]} 30. Qf3 {[%clk 00:00:37]} Bf6 {[%emt 00:00:05]
[%clk 00:00:28]} 31. Nb7 {[%emt 00:00:05] [%clk 00:00:34]} Rc3 {[%emt 00:00:04]
[%clk 00:00:26]} 32. Nc5 {[%emt 00:00:10] [%clk 00:00:27]} Rxd3 {[%emt 00:00:03]
[%clk 00:00:25]} 33. Qxd3 {[%clk 00:00:28]} Qc6+ {[%emt 00:00:02] [%clk
00:00:25]} 34. f3 {[%emt 00:00:04] [%clk 00:00:26]} a5 {[%emt 00:00:03] [%clk
00:00:24]} 35. Ne4 {[%emt 00:00:15] [%clk 00:00:13]} axb4 {[%emt 00:00:01] [%clk
00:00:24]} 36. axb4 {[%emt 00:00:04] [%clk 00:00:12]} Be7 {[%emt 00:00:02] [%clk
00:00:23]} 37. Nc3 {[%emt 00:00:03] [%clk 00:00:11]} Qd6 {[%emt 00:00:04] [%clk
00:00:20]} 38. Qxb5 {[%emt 00:00:05] [%clk 00:00:09]} Qxb4 {[%clk 00:00:21]} 39.
Qe8+ {[%emt 00:00:05] [%clk 00:00:06]} Bf8 {[%emt 00:00:02] [%clk 00:00:21]} 40.
Ne4 {[%emt 00:00:02] [%clk 00:00:06]} Qe7 {[%emt 00:00:01] [%clk 00:00:22]} 41.
Qb5 {[%emt 00:00:01] [%clk 00:00:07]} Qb4 {[%emt 00:00:01] [%clk 00:00:22]} 42.
Qd7 {[%emt 00:00:01] [%clk 00:00:08]} Qe7 {[%clk 00:00:23]} 43. Qd3 {[%clk
00:00:09]} Qa7 {[%emt 00:00:03] [%clk 00:00:22]} 44. h4 {[%emt 00:00:02] [%clk
00:00:10]} Qb7 {[%emt 00:00:01] [%clk 00:00:23]} 45. h5 {[%emt 00:00:02] [%clk
00:00:10]} Qa7 {[%emt 00:00:02] [%clk 00:00:23]} 46. g4 {[%emt 00:00:01] [%clk
00:00:11]} Qc7 {[%emt 00:00:01] [%clk 00:00:24]} 47. g5 {[%emt 00:00:01] [%clk
00:00:12]} Qf4 {[%emt 00:00:02] [%clk 00:00:23]} 48. g6 {[%emt 00:00:04] [%clk
00:00:10]} fxg6 {[%emt 00:00:06] [%clk 00:00:19]} 49. hxg6 {[%emt 00:00:01]
[%clk 00:00:11]} Qf5 {[%emt 00:00:01] [%clk 00:00:20]} 50. Nf2 {[%emt 00:00:02]
[%clk 00:00:11]} Qxd3 {[%emt 00:00:03] [%clk 00:00:19]} 51. Nxd3 {[%emt
00:00:01] [%clk 00:00:12]} Bd6 {[%clk 00:00:20]} 52. Kf2 {[%emt 00:00:07] [%clk
00:00:07]} Kf8 {[%clk 00:00:21]} 53. Ke3 {[%emt 00:00:01] [%clk 00:00:08]} Ke7
{[%clk 00:00:22]} 54. Nf2 {[%emt 00:00:02] [%clk 00:00:08]} Bc5+ {[%emt
00:00:04] [%clk 00:00:20]} 55. Kf4 {[%emt 00:00:03] [%clk 00:00:07]} Bxf2 {[%clk
00:00:21]} 56. Kg4 {[%emt 00:00:01] [%clk 00:00:07]} Kf6 {[%emt 00:00:01] [%clk
00:00:22]} 57. Kh5 {[%clk 00:00:08]} Kf5 {[%emt 00:00:02] [%clk 00:00:22]} 58.
e4+ {[%emt 00:00:03] [%clk 00:00:08]} Kf4 {[%emt 00:00:01] [%clk 00:00:23]} 59.
e5 {[%emt 00:00:01] [%clk 00:00:08]} Bd4 {[%emt 00:00:03] [%clk 00:00:23]} 0-1

[Site "Europe Echecs"]

[Event "Championnat d'Europe de Blitz"]
[Date "2024.12.09"]
[White "Saraci, Nderim"]
[Black "Radovanovic, Dusan"]
[WhiteElo "2431"]
[BlackElo "2274"]
[Round "9.39"]
[Result "1-0"]
[TimeControl "180+2"]

1. d4 {[%emt 00:00:02] [%clk 00:03:02]} Nf6 {[%clk 00:03:03]} 2. Nf3 {[%emt
00:00:02] [%clk 00:03:02]} e6 {[%clk 00:03:05]} 3. c4 {[%emt 00:00:04] [%clk
00:03:00]} b6 {[%emt 00:00:02] [%clk 00:03:05]} 4. g3 {[%emt 00:00:02] [%clk
00:03:00]} Ba6 {[%emt 00:00:01] [%clk 00:03:06]} 5. b3 {[%emt 00:00:02] [%clk
00:02:59]} Bb4+ {[%emt 00:00:01] [%clk 00:03:07]} 6. Bd2 {[%emt 00:00:02] [%clk
00:02:59]} Be7 {[%clk 00:03:08]} 7. Nc3 {[%emt 00:00:02] [%clk 00:02:59]} d5
{[%emt 00:00:01] [%clk 00:03:09]} 8. cxd5 {[%emt 00:00:04] [%clk 00:02:57]} Nxd5
{[%emt 00:00:01] [%clk 00:03:10]} 9. Bg2 {[%emt 00:00:23] [%clk 00:02:35]} Nd7
{[%emt 00:00:08] [%clk 00:03:05]} 10. Nxd5 {[%emt 00:00:15] [%clk 00:02:23]}
exd5 {[%emt 00:00:01] [%clk 00:03:06]} 11. O-O {[%emt 00:00:04] [%clk 00:02:20]}
O-O {[%emt 00:00:03] [%clk 00:03:05]} 12. Re1 {[%emt 00:00:04] [%clk 00:02:18]}
c5 {[%emt 00:00:24] [%clk 00:02:44]} 13. dxc5 {[%emt 00:00:08] [%clk 00:02:12]}
bxc5 {[%emt 00:00:12] [%clk 00:02:34]} 14. Rc1 {[%emt 00:00:05] [%clk 00:02:09]}
Rc8 {[%emt 00:00:03] [%clk 00:02:34]} 15. Bf4 {[%emt 00:00:13] [%clk 00:01:58]}
Nf6 {[%emt 00:00:30] [%clk 00:02:05]} 16. Ne5 {[%emt 00:00:02] [%clk 00:01:57]}
Bd6 {[%emt 00:00:43] [%clk 00:01:25]} 17. Nd3 {[%emt 00:00:44] [%clk 00:01:15]}
c4 {[%emt 00:00:26] [%clk 00:01:02]} 18. Bxd6 {[%emt 00:00:17] [%clk 00:01:00]}
Qxd6 {[%emt 00:00:11] [%clk 00:00:53]} 19. Nf4 {[%emt 00:00:13] [%clk 00:00:49]}
cxb3 {[%emt 00:00:04] [%clk 00:00:51]} 20. axb3 {[%emt 00:00:10] [%clk
00:00:40]} d4 {[%emt 00:00:15] [%clk 00:00:38]} 21. Qd2 {[%emt 00:00:08] [%clk
00:00:34]} Qe5 {[%emt 00:00:08] [%clk 00:00:32]} 22. Ra1 {[%emt 00:00:05] [%clk
00:00:31]} Bb5 {[%emt 00:00:17] [%clk 00:00:17]} 23. Rxa7 {[%emt 00:00:10] [%clk
00:00:23]} Rc3 {[%emt 00:00:02] [%clk 00:00:17]} 24. Ra5 {[%emt 00:00:08] [%clk
00:00:17]} Rxb3 {[%emt 00:00:08] [%clk 00:00:11]} 25. Qc2 {[%emt 00:00:10] [%clk
00:00:08]} Rc3 {[%emt 00:00:04] [%clk 00:00:10]} 26. Qb2 {[%emt 00:00:02] [%clk
00:00:08]} Rc5 {[%clk 00:00:11]} 27. Rd1 {[%emt 00:00:02] [%clk 00:00:07]} g5
{[%emt 00:00:04] [%clk 00:00:10]} 28. Nd3 {[%emt 00:00:03] [%clk 00:00:06]} Bxd3
{[%emt 00:00:01] [%clk 00:00:11]} 29. Rxc5 {[%clk 00:00:07]} Qxc5 {[%emt
00:00:01] [%clk 00:00:12]} 30. Rxd3 {[%clk 00:00:08]} Re8 {[%emt 00:00:08] [%clk
00:00:06]} 31. h3 {[%emt 00:00:02] [%clk 00:00:07]} h6 {[%clk 00:00:07]} 32.
Rxd4 {[%emt 00:00:02] [%clk 00:00:07]} Rxe2 {[%emt 00:00:07]} 33. Rd8+ {[%emt
00:00:03]} Ne8 {[%clk 00:00:00]} 34. Qxe2 {[%emt 00:00:01] [%clk 00:00:07]} 1-0

[Site "Europe Echecs"]